Workbook

Sheet 1200..
A2: EMPLOYER | C2: : | D2: Ikhala TVET College
A4: CONTRACT NO | C4: :
A6: FOR
A8: CONTRACT TITLE | C8: : | D8: IKHALA TVET COLLEGE
D9: INTERSECTION UPGRADE
A11: SCHEDULE OF QUANTITIES
A13: SCHEDULE A : ROAD CONSTRUCTION | I13: SECTION 1200
A15: ITEM | B15: DESCRIPTION | E15: LI | F15: UNIT | G15: QUANTITY | H15: RATE | I15: AMOUNT
A16: NO
I18: =IF(OR(AND(G18="Prov",H18="Sum"),(H18="PC Sum")),". . . . . . . . .00",IF(ISERR(G18*H18),"",IF(G18*H18=0,"",ROUND(G18*H18,2)))) -> 
B19: GENERAL REQUIREMENTS AND PROVISIONS | I19: =IF(OR(AND(G19="Prov",H19="Sum"),(H19="PC Sum")),". . . . . . . . .00",IF(ISERR(G19*H19),"",IF(G19*H19=0,"",ROUND(G19*H19,2)))) -> 
I20: =IF(OR(AND(G20="Prov",H20="Sum"),(H20="PC Sum")),". . . . . . . . .00",IF(ISERR(G20*H20),"",IF(G20*H20=0,"",ROUND(G20*H20,2)))) -> 
A22: B12.01 | B22: Occupational Health and Safety Act Administration | I22: =IF(OR(AND(G22="Prov",H22="Sum"),(H22="PC Sum")),". . . . . . . . .00",IF(ISERR(G22*H22),"",IF(G22*H22=0,"",ROUND(G22*H22,2)))) -> 
B24: (a) | C24: Contractor's initial obligations in terms of the | I24: =IF(OR(AND(G24="Prov",H24="Sum"),(H24="PC Sum")),". . . . . . . . .00",IF(ISERR(G24*H24),"",IF(G24*H24=0,"",ROUND(G24*H24,2)))) -> 
C25: Occupational Health and Safety Act and
C26: Construction Regulations | F26: Lump Sum | G26: 1.00 | H26: R 20,000.00 | I26: =IF(OR(AND(G26="Prov",H26="Sum"),(H26="PC Sum")),". . . . . . . . .00",IF(ISERR(G26*H26),"",IF(G26*H26=0,"",ROUND(G26*H26,2)))) -> R 20,000.00
B28: (b) | C28: Contractor's Time related Obligations in terms of the
C29: Occupational Health and Safety Act, Construction | I29: =IF(OR(AND(G29="Prov",H29="Sum"),(H29="PC Sum")),". . . . . . . . .00",IF(ISERR(G29*H29),"",IF(G29*H29=0,"",ROUND(G29*H29,2)))) -> 
C30: Regulations and requirements | F30: month | G30: 3.00 | H30: R 15,000.00 | I30: =G30*H30 -> R 45,000.00
B32: (c) | C32: Submission and approval of Health and Safety File | F32: Lump Sum | G32: 1.00 | H32: - | I32: Included
A34: B12.02 | B34: Provision for a Community Liaison Officer (CLO) | I34: =IF(OR(AND(G34="Prov",H34="Sum"),(H34="PC Sum")),". . . . . . . . .00",IF(ISERR(G34*H34),"",IF(G34*H34=0,"",ROUND(G34*H34,2)))) -> 
B36: (a) | C36: Payment of one CLO (R5500/month plus R250
C37: cellphone and talktime, plus R250 for transport,
C38: total = R6000/CLO/month) | F38: month | G38: 3.00 | H38: R 6,000.00 | I38: =IF(OR(AND(G38="Prov",H38="Sum"),(H38="PC Sum")),". . . . . . . . .00",IF(ISERR(G38*H38),"",IF(G38*H38=0,"",ROUND(G38*H38,2)))) -> R 18,000.00
I39: =IF(OR(AND(G39="Prov",H39="Sum"),(H39="PC Sum")),". . . . . . . . .00",IF(ISERR(G39*H39),"",IF(G39*H39=0,"",ROUND(G39*H39,2)))) -> 
B40: (b) | C40: Handling costs and profit in respect of
C41: sub-item B12.03(a) | F41: % | G41: 10% | H41: =I38*G41 -> R 1,800.00 | I41: =H41 -> R 1,800.00
A43: B12.03 | B43: Relocation and protection of existing services:
B45: a) | C45: Relocation, including lowering or raising,
C46: protection and/or repair of existing services
C47: which are not allowed for under any other
C48: items in the schedule of quantities. | F48: Prov Sum | G48: 1.00 | H48: 20,000.00 | I48: =H48 -> R 20,000.00
B50: b) | C50: Handling cost and profit in respect of
C51: sub-item B12.04(a) | F51: % | G51: 10% | H51: =I48*G51 -> 2,000.00 | I51: =H51 -> R 2,000.00
A53: B12.04 | B53: Control of dust and pollution | F53: Lump Sum | G53: 1.00 | H53: R 15,000.00 | I53: =H53 -> R 15,000.00
A55: B12.05 | B55: Compliance with Environment Management Plan | F55: Lump Sum | G55: 1.00 | H55: R 20,000.00 | I55: R 15,000.00
A75: 1200 | B75: TOTAL CARRIED TO SUMMARY | I75: =SUM(I18:I73) -> R 136,800.00

Sheet 1300..
A1: SCHEDULE A : ROAD CONSTRUCTION | I1: SECTION 1300
A3: ITEM | B3: DESCRIPTION | E3: LI | F3: UNIT | G3: QUANTITY | H3: RATE | I3: AMOUNT
A4: NO
I6: =IF(OR(AND(G6="Prov",H6="Sum"),(H6="PC Sum")),". . . . . . . . .00",IF(ISERR(G6*H6),"",IF(G6*H6=0,"",ROUND(G6*H6,2)))) -> 
B7: CONTRACTOR'S ESTABLISHMENT ON SITE
B8: AND GENERAL OBLIGATIONS
K9: =Summary!G14 -> 1,258,987.00
A10: B13.01 | B10: The Contractor's general obligations: | K10: =K9*0.1 -> 125898.7
B12: (a) | C12: Fixed obligations | F12: Lump Sum | G12: 1.00 | H12: =K10*0.5 -> R 62,949.35 | I12: R 180,000.00
B14: (b) | C14: Value-related obligations | F14: Lump Sum | G14: 1.00 | H14: =K10*0.2 -> R 25,179.74 | I14: R 60,000.00 | K14: =K10*0.3 -> 37769.61
K15: =K14/3 -> 12589.87
B16: (c) | C16: Time-related obligations | F16: month | G16: 3.00 | H16: =K15 -> R 12,589.87 | I16: =G16*H16 -> R 37,769.61
B18: NB | C18: The combined total tendered for subitems
C19: (a), (b) and (c) shall not exceed 10% of the
C20: Tender Sum
C21: (excluding VAT and Contingencies)
I39: =IF(OR(AND(G39="Prov",H39="Sum"),(H39="PC Sum")),". . . . . . . . .00",IF(ISERR(G39*H39),"",IF(G39*H39=0,"",ROUND(G39*H39,2)))) -> 
I40: =IF(OR(AND(G40="Prov",H40="Sum"),(H40="PC Sum")),". . . . . . . . .00",IF(ISERR(G40*H40),"",IF(G40*H40=0,"",ROUND(G40*H40,2)))) -> 
I41: =IF(OR(AND(G41="Prov",H41="Sum"),(H41="PC Sum")),". . . . . . . . .00",IF(ISERR(G41*H41),"",IF(G41*H41=0,"",ROUND(G41*H41,2)))) -> 
A82: 1300 | B82: TOTAL CARRIED TO SUMMARY | I82: =SUM(I11:I79) -> R 277,769.61

Sheet 1500..
A1: SCHEDULE A : ROAD CONSTRUCTION | I1: SECTION 1500
A3: ITEM | B3: DESCRIPTION | E3: LI | F3: UNIT | G3: QUANTITY | H3: RATE | I3: AMOUNT
A4: NO
I6: =IF(OR(AND(G6="Prov",H6="Sum"),(H6="PC Sum")),". . . . . . . . .00",IF(ISERR(G6*H6),"",IF(G6*H6=0,"",ROUND(G6*H6,2)))) -> 
B7: ACCOMMODATION OF TRAFFIC
A9: 15.03 | B9: Temporary traffic-control facilities:
B11: (a) | C11: Flagmen | E11: LI | F11: man-day | G11: =20*3 -> 60.00 | H11: R 270.00 | I11: =IF(OR(AND(G11="Prov",H11="Sum"),(H11="PC Sum")),". . . . . . . . .00",IF(ISERR(G11*H11),"",IF(G11*H11=0,"",ROUND(G11*H11,2)))) -> R 16,200.00
B13: (b) | C13: Portable STOP and GO-RY signs | E13: LI | F13: No. | G13: 3.00 | H13: R 700.00 | I13: =IF(OR(AND(G13="Prov",H13="Sum"),(H13="PC Sum")),". . . . . . . . .00",IF(ISERR(G13*H13),"",IF(G13*H13=0,"",ROUND(G13*H13,2)))) -> R 2,100.00
B15: (d) | C15: Amber flicker lights | E15: LI | F15: No. | G15: 0.00 | H15: R 388.57 | I15: =H15*G15 -> R 0.00
B17: (e) | C17: Regulatory Road Signs R- and TR-series
C20: (i) | D20: TR101 | E20: LI | F20: No. | G20: 16.00 | H20: R 720.00 | I20: =G20*H20 -> R 11,520.00
C22: (i) | D22: TR103 or TR104 | E22: LI | F22: No. | G22: 6.00 | H22: R 800.00 | I22: =IF(OR(AND(G22="Prov",H22="Sum"),(H22="PC Sum")),". . . . . . . . .00",IF(ISERR(G22*H22),"",IF(G22*H22=0,"",ROUND(G22*H22,2)))) -> R 4,800.00
C24: (ii) | D24: TR201-40 | E24: LI | F24: No. | G24: 6.00 | H24: R 800.00 | I24: =IF(OR(AND(G24="Prov",H24="Sum"),(H24="PC Sum")),". . . . . . . . .00",IF(ISERR(G24*H24),"",IF(G24*H24=0,"",ROUND(G24*H24,2)))) -> R 4,800.00
B26: (f) | C26: Warning Road Signs TW-series
C28: (i) | D28: TW 328 | E28: LI | F28: No. | G28: 0.00 | H28: R 480.00 | I28: =IF(OR(AND(G28="Prov",H28="Sum"),(H28="PC Sum")),". . . . . . . . .00",IF(ISERR(G28*H28),"",IF(G28*H28=0,"",ROUND(G28*H28,2)))) -> 
C30: (ii) | D30: TW 329 or TW330 | E30: LI | F30: No. | G30: 3.00 | H30: R 480.00 | I30: =IF(OR(AND(G30="Prov",H30="Sum"),(H30="PC Sum")),". . . . . . . . .00",IF(ISERR(G30*H30),"",IF(G30*H30=0,"",ROUND(G30*H30,2)))) -> R 1,440.00
C32: (iii) | D32: TW 336 | E32: LI | F32: No. | G32: 3.00 | H32: R 480.00 | I32: =IF(OR(AND(G32="Prov",H32="Sum"),(H32="PC Sum")),". . . . . . . . .00",IF(ISERR(G32*H32),"",IF(G32*H32=0,"",ROUND(G32*H32,2)))) -> R 1,440.00
C34: (iv) | D34: TW 402 | E34: LI | F34: No. | G34: 3.00 | H34: R 480.00 | I34: =IF(OR(AND(G34="Prov",H34="Sum"),(H34="PC Sum")),". . . . . . . . .00",IF(ISERR(G34*H34),"",IF(G34*H34=0,"",ROUND(G34*H34,2)))) -> R 1,440.00
B36: (h) | C36: Delineators (DTG50J), 150 mm x 600 mm high
C38: (i) | D38: Single | E38: LI | F38: No. | G38: 40.00 | H38: R 80.00 | I38: =IF(OR(AND(G38="Prov",H38="Sum"),(H38="PC Sum")),". . . . . . . . .00",IF(ISERR(G38*H38),"",IF(G38*H38=0,"",ROUND(G38*H38,2)))) -> R 3,200.00
C40: (ii) | D40: Mounted back to back | E40: LI | F40: No. | G40: 40.00 | H40: R 120.00 | I40: =IF(OR(AND(G40="Prov",H40="Sum"),(H40="PC Sum")),". . . . . . . . .00",IF(ISERR(G40*H40),"",IF(G40*H40=0,"",ROUND(G40*H40,2)))) -> R 4,800.00
T41: number (No.)
B42: (j) | C42: Traffic Cones TD4 | E42: LI | F42: No. | G42: 40.00 | H42: R 150.00 | I42: =IF(OR(AND(G42="Prov",H42="Sum"),(H42="PC Sum")),". . . . . . . . .00",IF(ISERR(G42*H42),"",IF(G42*H42=0,"",ROUND(G42*H42,2)))) -> R 6,000.00 | T42: number (No.)
A80: 1500 | B80: TOTAL CARRIED TO SUMMARY | I80: =IF(SUM(I9:I79)=0,"",SUM(I9:I79)) -> R 57,740.00

Sheet 1800
A1: SCHEDULE A : ROAD CONSTRUCTION | I1: SECTION 1800
A3: ITEM | B3: DESCRIPTION | E3: LI | F3: UNIT | G3: QUANTITY | H3: RATE | I3: AMOUNT
A4: NO
I6: =IF(OR(AND(G6="Prov",H6="Sum"),(H6="PC Sum")),". . . . . . . . .00",IF(ISERR(G6*H6),"",IF(G6*H6=0,"",ROUND(G6*H6,2)))) -> 
B7: DAYWORKS
A9: B18.01 | B9: Labourers:
B11: (i) Unskilled | E11: LI | F11: hour | G11: - | H11: 58.17 | I11: Rate only
B13: (ii) Semi-skilled | E13: LI | F13: hour | G13: - | H13: 59.57 | I13: Rate only
B15: (iii) Skilled | E15: LI | F15: hour | G15: - | H15: 63.15 | I15: Rate only
A17: B18.02 | B17: Foreman | E17: LI | F17: hour | G17: - | H17: 94.93 | I17: Rate only
A19: B18.03 | B19: Tipper trucks:
B21: (i) 3 - 5 ton | F21: hour | G21: - | H21: 353.23 | I21: Rate only
A24: B18.04 | B24: Loader (0,5m³) | F24: hour | G24: - | H24: 538.31 | I24: Rate only
A26: B18.05 | B26: Grader (CAT 140G or similar) | F26: hour | G26: - | H26: 1,049.90 | I26: Rate only
A28: B18.06 | B28: LDV | F28: hour | G28: - | H28: 188.33 | I28: Rate only
A30: B18.07 | B30: Compaction Rollers:
B32: (i) Vibrator roller | F32: hour | G32: - | H32: 713.80 | I32: Rate only
B34: (ii) Tamping roller | F34: hour | G34: - | H34: 713.80 | I34: Rate only
B36: (iii) Grid roller | F36: hour | G36: - | H36: 626.85 | I36: Rate only
A38: B18.08 | B38: Hand controlled compactors:
B40: (i) Pedestrian roller (Bomag BW90) | F40: hour | G40: - | H40: 137.15 | I40: Rate only
B42: (ii) Vibratory plate | F42: hour | G42: - | H42: 164.59 | I42: Rate only
B44: (iii) Rammers | F44: hour | G44: - | H44: 197.50 | I44: Rate only
A46: B18.09 | B46: Water truck (min. 7 000 l) | F46: hour | G46: - | H46: 240.45 | I46: Rate only
A49: B18.11 | B49: Tracked Excavator (92kw) | F49: hour | G49: - | H49: 511.59 | I49: Rate only
A80: 1800 | B80: TOTAL CARRIED TO SUMMARY | I80: =IF(SUM(I6:I78)=0,"-",SUM(I6:I78)) -> -

Sheet 2100
A1: SCHEDULE A : ROAD CONSTRUCTION | I1: SECTION 2100
A3: ITEM | B3: DESCRIPTION | E3: LI | F3: UNIT | G3: QUANTITY | H3: RATE | I3: AMOUNT
A4: NO
I6: =IF(OR(AND(G6="Prov",H6="Sum"),(H6="PC Sum")),". . . . . . . . .00",IF(ISERR(G6*H6),"",IF(G6*H6=0,"",ROUND(G6*H6,2)))) -> 
B7: EXCAVATION FOR OPEN DRAINS | I7: =IF(OR(AND(G7="Prov",H7="Sum"),(H7="PC Sum")),". . . . . . . . .00",IF(ISERR(G7*H7),"",IF(G7*H7=0,"",ROUND(G7*H7,2)))) -> 
I8: =IF(OR(AND(G8="Prov",H8="Sum"),(H8="PC Sum")),". . . . . . . . .00",IF(ISERR(G8*H8),"",IF(G8*H8=0,"",ROUND(G8*H8,2)))) -> 
A9: 21.01 | B9: Excavation for open drains:
B11: (a) | C11: Excavating in all materials situated within the
C12: following depth ranges below the surface
C13: level:
C15: (i) | D15: 0 m up to 1,5 m | E15: LI | F15: m³ | G15: 16.00 | H15: R 135.00 | I15: =G15*H15 -> R 2,160.00
A17: 21.06 | B17: Pipes in subsoil drainage systems
B19: (c) | C19: High-density type poly-ethylene pressure pipes
C20: and fittings, complete with couplings
C22: (i) | D22: 110mm dia | E22: LI | F22: m | G22: 100.00 | H22: R 470.00 | I22: =G22*H22 -> R 47,000.00 | K22: =180/1.8 -> 100
A24: 21.12 | B24: concrete outlet structures,manhole boxes, junction boxes and
B25: cleaning eyes for subsoil drainage systems:
B27: (a) | C27: Outlet structures | E27: Ll | F27: No | G27: 1.00 | H27: R 8,280.00 | I27: =H27 -> R 8,280.00
A72: 2200 | B72: TOTAL CARRIED TO SUMMARY | I72: =SUM(I10:I70) -> R 57,440.00

Sheet 2300
A1: SCHEDULE A : ROAD CONSTRUCTION | I1: SECTION 2300
A3: ITEM | B3: DESCRIPTION | E3: LI | F3: UNIT | G3: QUANTITY | H3: RATE | I3: AMOUNT
A4: NO
I6: =IF(OR(AND(G6="Prov",H6="Sum"),(H6="PC Sum")),". . . . . . . . .00",IF(ISERR(G6*H6),"",IF(G6*H6=0,"",ROUND(G6*H6,2)))) -> 
B7: CONCRETE KERBING, CHANNELLING, CHUTES | I7: =IF(OR(AND(G7="Prov",H7="Sum"),(H7="PC Sum")),". . . . . . . . .00",IF(ISERR(G7*H7),"",IF(G7*H7=0,"",ROUND(G7*H7,2)))) -> 
B8: AND DOWNPIPES, AND CONCRETE LININGS | I8: =IF(OR(AND(G8="Prov",H8="Sum"),(H8="PC Sum")),". . . . . . . . .00",IF(ISERR(G8*H8),"",IF(G8*H8=0,"",ROUND(G8*H8,2)))) -> 
B9: FOR OPEN DRAINS
A11: 23.01 | B11: Concrete kerbing
B13: (b) | C13: SABS 927 Fig 8b Precast concrete kerb | E13: LI | F13: m | G13: 80.00 | H13: R 480.00 | I13: =IF(OR(AND(G13="Prov",H13="Sum"),(H13="PC Sum")),". . . . . . . . .00",IF(ISERR(G13*H13),"",IF(G13*H13=0,"",ROUND(G13*H13,2)))) -> R 38,400.00
B15: (c) | C15: SABS 927 Fig 7 Precast concrete kerb | E15: LI | F15: m | G15: 100 | H15: R 350.00 | I15: =IF(OR(AND(G15="Prov",H15="Sum"),(H15="PC Sum")),". . . . . . . . .00",IF(ISERR(G15*H15),"",IF(G15*H15=0,"",ROUND(G15*H15,2)))) -> R 35,000.00
B17: (d) | C17: Cast in-situ concrete edge beams Class 30/19
C18: (100mm x 100mm) - next to paved walkways | E18: LI | F18: m | G18: 275.00 | H18: R 368.00 | I18: R 101,200.00
A20: B23.17 | B20: Removing existing kerbing | E20: LI | F20: m | G20: 300.00 | H20: R 120.00 | I20: =IF(OR(AND(G20="Prov",H20="Sum"),(H20="PC Sum")),". . . . . . . . .00",IF(ISERR(G20*H20),"",IF(G20*H20=0,"",ROUND(G20*H20,2)))) -> R 36,000.00
A81: 2300 | B81: TOTAL CARRIED TO SUMMARY | I81: =SUM(I6:I79) -> R 210,600.00

Sheet 3300
A1: SCHEDULE A : ROAD CONSTRUCTION | I1: SECTION 3300
A3: ITEM | B3: DESCRIPTION | E3: LI | F3: UNIT | G3: QUANTITY | H3: RATE | I3: AMOUNT
A4: NO
I6: =IF(OR(AND(G6="Prov",H6="Sum"),(H6="PC Sum")),". . . . . . . . .00",IF(ISERR(G6*H6),"",IF(G6*H6=0,"",ROUND(G6*H6,2)))) -> 
B7: BORROW MATERIALS | I7: =IF(OR(AND(G7="Prov",H7="Sum"),(H7="PC Sum")),". . . . . . . . .00",IF(ISERR(G7*H7),"",IF(G7*H7=0,"",ROUND(G7*H7,2)))) -> 
I8: =IF(OR(AND(G8="Prov",H8="Sum"),(H8="PC Sum")),". . . . . . . . .00",IF(ISERR(G8*H8),"",IF(G8*H8=0,"",ROUND(G8*H8,2)))) -> 
A9: B33.04 | B9: Cut to spoil to an approved dumping site, or sources | I9: =IF(OR(AND(G9="Prov",H9="Sum"),(H9="PC Sum")),". . . . . . . . .00",IF(ISERR(G9*H9),"",IF(G9*H9=0,"",ROUND(G9*H9,2)))) -> 
B10: provided by the Contractor, including all haul:
B12: (b) | C12: Intermediate excavation | F12: m3 | G12: 530.0 | H12: R 250.00 | I12: =G12*H12 -> R 132,500.00
A15: 33.10 | B15: Roadbed preparation and the compaction of material:
B17: (b) | C17: Compaction to 93% of modified AASHTO to | F17: m3 | G17: 210.00 | H17: R 230.00 | I17: R 48,300.00 | J17: =0.86*0.1*250 -> 21.5
C18: compacted layer thickness of 150 mm
A60: 3300 | B60: TOTAL CARRIED TO SUMMARY | I60: =SUM(I9:I21) -> R 180,800.00

Sheet 3400
A1: SCHEDULE A : ROAD CONSTRUCTION | I1: SECTION 3400
A3: ITEM | B3: DESCRIPTION | E3: LI | F3: UNIT | G3: QUANTITY | H3: RATE | I3: AMOUNT
A4: NO
I6: =IF(OR(AND(G6="Prov",H6="Sum"),(H6="PC Sum")),". . . . . . . . .00",IF(ISERR(G6*H6),"",IF(G6*H6=0,"",ROUND(G6*H6,2)))) -> 
B7: PAVEMENT LAYERS OF GRAVEL MATERIAL
A9: B34.15 | B9: Pavement layers constructed from gravel
B10: obtained from commercial sources or
B11: approved sources provided by the Contractor,
B12: including all haul:
B14: (a) | C14: Gravel selected layer (G7) compacted to:
C16: (i) | D16: 93% of modified AASHTO density for a
D17: compacted layer thickness of 150 mm | F17: m³ | G17: 255.00 | H17: R 410.00 | I17: =G17*H17 -> R 104,550.00
B19: (c) | C19: Gravel subbase (stabilized gravel, min G5 or G6
C20: before stabilisation to ensure a C4 after
C21: stabilisation) compacted to:
C23: (i) | D23: 97% of modified AASHTO density for a
D24: compacted layer thickness of 150 mm | F24: m³ | G24: 180.00 | H24: R 445.00 | I24: =G24*H24 -> R 80,100.00
A68: 3400 | B68: TOTAL CARRIED TO SUMMARY | I68: =SUM(I6:I66) -> R 184,650.00

Sheet 3500
A1: SCHEDULE A : ROAD CONSTRUCTION | I1: SECTION 3500
A3: ITEM | B3: DESCRIPTION | E3: LI | F3: UNIT | G3: QUANTITY | H3: RATE | I3: AMOUNT
A4: NO
I6: =IF(OR(AND(G6="Prov",H6="Sum"),(H6="PC Sum")),". . . . . . . . .00",IF(ISERR(G6*H6),"",IF(G6*H6=0,"",ROUND(G6*H6,2)))) -> 
B7: STABILIZATION | I7: =IF(OR(AND(G7="Prov",H7="Sum"),(H7="PC Sum")),". . . . . . . . .00",IF(ISERR(G7*H7),"",IF(G7*H7=0,"",ROUND(G7*H7,2)))) -> 
I8: =IF(OR(AND(G8="Prov",H8="Sum"),(H8="PC Sum")),". . . . . . . . .00",IF(ISERR(G8*H8),"",IF(G8*H8=0,"",ROUND(G8*H8,2)))) -> 
A9: 35.01 | B9: Chemical stabilization extra over unstabilized
B10: compacted layers:
B12: (c) | C12: Gravel subbase, 150 mm thick | E12: LI | F12: m³ | G12: ='3400'!G24 -> 180.00 | H12: R 25.00 | I12: =G12*H12 -> R 4,500.00
A14: 35.02 | B14: Chemical stabilizing agent:
B16: (a) | C16: Ordinary Portland Cement | E16: LI | F16: t | G16: 13.00 | H16: R 2,200.00 | I16: =G16*H16 -> R 28,600.00
A18: 35.04 | B18: Provision and application of water for curing | E18: LI | F18: kilolitre | G18: 500.00 | H18: R 23.00 | I18: =G18*H18 -> R 11,500.00
A82: 3500 | B82: TOTAL CARRIED TO SUMMARY | I82: =SUM(I6:I80) -> R 44,600.00

Sheet 5600
A1: SCHEDULE A : ROAD CONSTRUCTION | I1: SECTION 5600
A3: ITEM | B3: DESCRIPTION | E3: LI | F3: UNIT | G3: QUANTITY | H3: RATE | I3: AMOUNT
A4: NO
I6: =IF(OR(AND(G6="Prov",H6="Sum"),(H6="PC Sum")),". . . . . . . . .00",IF(ISERR(G6*H6),"",IF(G6*H6=0,"",ROUND(G6*H6,2)))) -> 
B7: ROAD SIGNS | I7: =IF(OR(AND(G7="Prov",H7="Sum"),(H7="PC Sum")),". . . . . . . . .00",IF(ISERR(G7*H7),"",IF(G7*H7=0,"",ROUND(G7*H7,2)))) -> 
I8: =IF(OR(AND(G8="Prov",H8="Sum"),(H8="PC Sum")),". . . . . . . . .00",IF(ISERR(G8*H8),"",IF(G8*H8=0,"",ROUND(G8*H8,2)))) -> 
A9: B56.01 | B9: Road sign boards with painted or coloured semi-matt
B10: background. Symbols, lettering and borders in
B11: diamond grade retro- reflective material, where the
B12: sign board is constructed from:
B14: (b) | C14: Aluminum sections (extruded alloy profiles,
C15: 200mm high), all sizes | E15: LI | F15: m² | G15: 39.00 | H15: R 950.00 | I15: =IF(OR(AND(G15="Prov",H15="Sum"),(H15="PC Sum")),". . . . . . . . .00",IF(ISERR(G15*H15),"",IF(G15*H15=0,"",ROUND(G15*H15,2)))) -> R 37,050.00 | K15: =0.8*0.6 -> 0.48
A17: 56.05 | B17: Excavation and backfilling for road sign supports
B18: (not applicable to kilometre posts) | E18: LI | F18: m³ | G18: 19.00 | H18: R 156.00 | I18: =IF(OR(AND(G18="Prov",H18="Sum"),(H18="PC Sum")),". . . . . . . . .00",IF(ISERR(G18*H18),"",IF(G18*H18=0,"",ROUND(G18*H18,2)))) -> R 2,964.00 | K18: =K15*39 -> 18.72
A20: 56.06 | B20: Extra over item 56.05 for cement-treated soil backfill | E20: LI | F20: m³ | G20: 2.00 | H20: R 250.00 | I20: R 500.00
A82: 5600 | B82: TOTAL CARRIED TO SUMMARY | I82: =IF(SUM(I1:I81)=0,"",SUM(I1:I81)) -> R 40,514.00

Sheet 5700
A1: SCHEDULE A : ROAD CONSTRUCTION | I1: SECTION 5700
A3: ITEM | B3: DESCRIPTION | E3: LI | F3: UNIT | G3: QUANTITY | H3: RATE | I3: AMOUNT
A4: NO
I6: =IF(OR(AND(G6="Prov",H6="Sum"),(H6="PC Sum")),". . . . . . . . .00",IF(ISERR(G6*H6),"",IF(G6*H6=0,"",ROUND(G6*H6,2)))) -> 
B7: ROAD MARKINGS | I7: =IF(OR(AND(G7="Prov",H7="Sum"),(H7="PC Sum")),". . . . . . . . .00",IF(ISERR(G7*H7),"",IF(G7*H7=0,"",ROUND(G7*H7,2)))) -> 
I8: =IF(OR(AND(G8="Prov",H8="Sum"),(H8="PC Sum")),". . . . . . . . .00",IF(ISERR(G8*H8),"",IF(G8*H8=0,"",ROUND(G8*H8,2)))) -> 
A9: 57.03 | B9: Retro-reflective road marking paint:
B11: (a) | C11: White lines (broken or unbroken):
C13: (i) | D13: 100 mm wide | E13: LI | F13: km | G13: 1.00 | H13: R 4,615.00 | I13: =IF(OR(AND(G13="Prov",H13="Sum"),(H13="PC Sum")),". . . . . . . . .00",IF(ISERR(G13*H13),"",IF(G13*H13=0,"",ROUND(G13*H13,2)))) -> R 4,615.00
C15: (iii) | D15: 300 mm wide | E15: LI | F15: km | G15: 1.00 | H15: R 4,603.00 | I15: R 4,603.00
B17: (d) | C17: White lettering and symbols | E17: LI | F17: m² | G17: 160.00 | H17: R 200.00 | I17: =IF(OR(AND(G17="Prov",H17="Sum"),(H17="PC Sum")),". . . . . . . . .00",IF(ISERR(G17*H17),"",IF(G17*H17=0,"",ROUND(G17*H17,2)))) -> R 32,000.00
B19: (e) | C19: Yellow lettering and symbols | E19: LI | F19: m² | G19: 30 | H19: R 170.00 | I19: R 5,100.00
A21: 57.06 | B21: Setting out and premarking the lines
B22: (excluding traffic-island markings, lettering
B23: and symbols) | E23: LI | F23: km | G23: 2.50 | H23: R 1,850.00 | I23: =IF(OR(AND(G23="Prov",H23="Sum"),(H23="PC Sum")),". . . . . . . . .00",IF(ISERR(G23*H23),"",IF(G23*H23=0,"",ROUND(G23*H23,2)))) -> R 4,625.00
A72: 5700 | B72: TOTAL CARRIED TO SUMMARY | I72: =IF(SUM(I1:I71)=0,"",SUM(I1:I71)) -> R 50,943.00

Sheet 5800
A1: SCHEDULE A : ROAD CONSTRUCTION | I1: SECTION 5800
A3: ITEM | B3: DESCRIPTION | E3: LI | F3: UNIT | G3: QUANTITY | H3: RATE | I3: AMOUNT
A4: NO
I6: =IF(OR(AND(G6="Prov",H6="Sum"),(H6="PC Sum")),". . . . . . . . .00",IF(ISERR(G6*H6),"",IF(G6*H6=0,"",ROUND(G6*H6,2)))) -> 
B7: LANDSCAPING AND PLANTING PLANTS
A9: 58.03 | B9: Preparing the areas for grassing:
B11: (c) | C11: Topsoiling within the road reserve, where the
C12: following materials are used:
I13: =IF(OR(AND(G13="Prov",H13="Sum"),(H13="PC Sum")),". . . . . . . . .00",IF(ISERR(G13*H13),"",IF(G13*H13=0,"",ROUND(G13*H13,2)))) -> 
C14: (ii) | D14: Topsoil obtained from other sources by | E14: LI | F14: m³ | G14: 20 | H14: R 50.00 | I14: =IF(OR(AND(G14="Prov",H14="Sum"),(H14="PC Sum")),". . . . . . . . .00",IF(ISERR(G14*H14),"",IF(G14*H14=0,"",ROUND(G14*H14,2)))) -> R 1,000.00
D15: the Contractor (including all haul) | I15: =IF(OR(AND(G15="Prov",H15="Sum"),(H15="PC Sum")),". . . . . . . . .00",IF(ISERR(G15*H15),"",IF(G15*H15=0,"",ROUND(G15*H15,2)))) -> 
I16: =IF(OR(AND(G16="Prov",H16="Sum"),(H16="PC Sum")),". . . . . . . . .00",IF(ISERR(G16*H16),"",IF(G16*H16=0,"",ROUND(G16*H16,2)))) -> 
I17: =IF(OR(AND(G17="Prov",H17="Sum"),(H17="PC Sum")),". . . . . . . . .00",IF(ISERR(G17*H17),"",IF(G17*H17=0,"",ROUND(G17*H17,2)))) -> 
I30: =IF(OR(AND(G30="Prov",H30="Sum"),(H30="PC Sum")),". . . . . . . . .00",IF(ISERR(G30*H30),"",IF(G30*H30=0,"",ROUND(G30*H30,2)))) -> 
I41: =IF(OR(AND(G41="Prov",H41="Sum"),(H41="PC Sum")),". . . . . . . . .00",IF(ISERR(G41*H41),"",IF(G41*H41=0,"",ROUND(G41*H41,2)))) -> 
I42: =IF(OR(AND(G42="Prov",H42="Sum"),(H42="PC Sum")),". . . . . . . . .00",IF(ISERR(G42*H42),"",IF(G42*H42=0,"",ROUND(G42*H42,2)))) -> 
I43: =IF(OR(AND(G43="Prov",H43="Sum"),(H43="PC Sum")),". . . . . . . . .00",IF(ISERR(G43*H43),"",IF(G43*H43=0,"",ROUND(G43*H43,2)))) -> 
I71: =IF(OR(AND(G71="Prov",H71="Sum"),(H71="PC Sum")),". . . . . . . . .00",IF(ISERR(G71*H71),"",IF(G71*H71=0,"",ROUND(G71*H71,2)))) -> 
I80: =IF(OR(AND(G80="Prov",H80="Sum"),(H80="PC Sum")),". . . . . . . . .00",IF(ISERR(G80*H80),"",IF(G80*H80=0,"",ROUND(G80*H80,2)))) -> 
A82: 5900 | B82: TOTAL CARRIED TO SUMMARY | I82: =IF(SUM(I6:I81)=0,"",SUM(I6:I81)) -> R 1,000.00

Sheet 7300
A1: SCHEDULE A : ROAD CONSTRUCTION | I1: SECTION 7300
A3: ITEM | B3: DESCRIPTION | E3: LI | F3: UNIT | G3: QUANTITY | H3: RATE | I3: AMOUNT
A4: NO
I6: =IF(OR(AND(G6="Prov",H6="Sum"),(H6="PC Sum")),". . . . . . . . .00",IF(ISERR(G6*H6),"",IF(G6*H6=0,"",ROUND(G6*H6,2)))) -> 
B7: CONCRETE BLOCK PAVING FOR ROADS
A9: 73.01 | B9: Concrete block paving
B11: (a) | C11: Grey interlocking precast concrete paving
C12: blocks type SA 60mm thick, including all cutting
C13: of units to fit between edge restraints , laid on
C14: and including 20mm river sand bed , compacted
C15: and plaster sand broomed into joints on
C16: completion | E16: LI | F16: m² | G16: 800.00 | H16: R 300.00 | I16: =IF(OR(AND(G16="Prov",H16="Sum"),(H16="PC Sum")),". . . . . . . . .00",IF(ISERR(G16*H16),"",IF(G16*H16=0,"",ROUND(G16*H16,2)))) -> R 240,000.00
I17: =IF(OR(AND(G17="Prov",H17="Sum"),(H17="PC Sum")),". . . . . . . . .00",IF(ISERR(G17*H17),"",IF(G17*H17=0,"",ROUND(G17*H17,2)))) -> 
A18: 73.03 | B18: Provision of approved herbicide and ant poison: | I18: =IF(OR(AND(G18="Prov",H18="Sum"),(H18="PC Sum")),". . . . . . . . .00",IF(ISERR(G18*H18),"",IF(G18*H18=0,"",ROUND(G18*H18,2)))) -> 
I19: =IF(OR(AND(G19="Prov",H19="Sum"),(H19="PC Sum")),". . . . . . . . .00",IF(ISERR(G19*H19),"",IF(G19*H19=0,"",ROUND(G19*H19,2)))) -> 
B20: a) | C20: Provision of materials | F20: PC | G20: 1.00 | H20: R 24,000.00 | I20: =IF(OR(AND(G20="Prov",H20="Sum"),(H20="PC Sum")),". . . . . . . . .00",IF(ISERR(G20*H20),"",IF(G20*H20=0,"",ROUND(G20*H20,2)))) -> R 24,000.00
B22: b) | C22: Contractor's charges and profit added to
C23: the prime cost sum | F23: % | G23: 10% | H23: =H20*G23 -> R 2,400.00 | I23: =H23 -> R 2,400.00
A25: B73.04 | B25: Pedestrian ramps
B27: a) | C27: Pedestrian ramp "type A" including transitions
C28: complete | E28: LI | F28: No. | G28: 3.00 | H28: R 2,500.00 | I28: =IF(OR(AND(G28="Prov",H28="Sum"),(H28="PC Sum")),". . . . . . . . .00",IF(ISERR(G28*H28),"",IF(G28*H28=0,"",ROUND(G28*H28,2)))) -> R 7,500.00
I36: =IF(OR(AND(G36="Prov",H36="Sum"),(H36="PC Sum")),". . . . . . . . .00",IF(ISERR(G36*H36),"",IF(G36*H36=0,"",ROUND(G36*H36,2)))) -> 
I37: =IF(OR(AND(G37="Prov",H37="Sum"),(H37="PC Sum")),". . . . . . . . .00",IF(ISERR(G37*H37),"",IF(G37*H37=0,"",ROUND(G37*H37,2)))) -> 
I38: =IF(OR(AND(G38="Prov",H38="Sum"),(H38="PC Sum")),". . . . . . . . .00",IF(ISERR(G38*H38),"",IF(G38*H38=0,"",ROUND(G38*H38,2)))) -> 
I39: =IF(OR(AND(G39="Prov",H39="Sum"),(H39="PC Sum")),". . . . . . . . .00",IF(ISERR(G39*H39),"",IF(G39*H39=0,"",ROUND(G39*H39,2)))) -> 
I75: =IF(OR(AND(G75="Prov",H75="Sum"),(H75="PC Sum")),". . . . . . . . .00",IF(ISERR(G75*H75),"",IF(G75*H75=0,"",ROUND(G75*H75,2)))) -> 
A77: 7300 | B77: TOTAL CARRIED TO SUMMARY | I77: =IF(SUM(I6:I76)=0,"",SUM(I6:I76)) -> R 273,900.00

Sheet 8100..
A1: SCHEDULE A : ROAD CONSTRUCTION | I1: SECTION 8100
A3: ITEM | B3: DESCRIPTION | E3: LI | F3: UNIT | G3: QUANTITY | H3: RATE | I3: AMOUNT
A4: NO
I6: =IF(OR(AND(G6="Prov",H6="Sum"),(H6="PC Sum")),". . . . . . . . .00",IF(ISERR(G6*H6),"",IF(G6*H6=0,"",ROUND(G6*H6,2)))) -> 
B7: TESTING MATERIALS AND WORKMANSHIP | I7: =IF(OR(AND(G7="Prov",H7="Sum"),(H7="PC Sum")),". . . . . . . . .00",IF(ISERR(G7*H7),"",IF(G7*H7=0,"",ROUND(G7*H7,2)))) -> 
I8: =IF(OR(AND(G8="Prov",H8="Sum"),(H8="PC Sum")),". . . . . . . . .00",IF(ISERR(G8*H8),"",IF(G8*H8=0,"",ROUND(G8*H8,2)))) -> 
A9: 81.02 | B9: Other special tests requested by the engineer | F9: Prov Sum | G9: 1 | H9: R 20,000.00 | I9: =IF(OR(AND(G9="Prov",H9="Sum"),(H9="PC Sum")),". . . . . . . . .00",IF(ISERR(G9*H9),"",IF(G9*H9=0,"",ROUND(G9*H9,2)))) -> R 20,000.00
I10: =IF(OR(AND(G10="Prov",H10="Sum"),(H10="PC Sum")),". . . . . . . . .00",IF(ISERR(G10*H10),"",IF(G10*H10=0,"",ROUND(G10*H10,2)))) -> 
A82: 8100 | B82: TOTAL CARRIED TO SUMMARY | I82: =IF(SUM(I6:I81)=0,"",SUM(I6:I81)) -> R 20,000.00

Sheet Summary
A1: EMPLOYER: JRA | B1: ='1200..'!D2 -> Ikhala TVET College
A3: CONTRACT NO: 092/2013 | B3: ='1200..'!D4 -> 0
A5: FOR
A7: CONTRACT TITLE: | B7: ='1200..'!D8 -> IKHALA TVET COLLEGE
B8: ='1200..'!D9 -> INTERSECTION UPGRADE
A10: SUMMARY OF SCHEDULE OF QUANTITIES
A12: SCHEDULE A : ROAD CONSTRUCTION | E12: COLTO
A14: 1200 | B14: GENERAL REQUIREMENTS AND PROVISIONS . . . . . . . . . . . . . . . . . . .. . . . . . . . . . . . . . . . . . . . . . . . . . . . | D14: R | E14: ='1200..'!I75 -> 136,800.00 | G14: =SUM(E17:E29)+E14 -> 1,258,987.00
A15: 1300 | B15: CONTRACTOR'S ESTABLISHMENT ON SITE AND
B16: GENERAL OBLIGATIONS . . . . . . . . . . . . . . . . . . . . . . . . . . . . . . . . . . .. . . . . . . . . . . . . . . . . . . . . . . . . . . . | D16: R | E16: ='1300.. '!I82 -> 277,769.61
A17: 1500 | B17: ACCOMMODATION OF TRAFFIC . . . . . . . . . . . . . . . . . . . . . . . . . . . . . . . . . . . . . . . . . . . . . . . . . . . . . . . . . . . . . . . . . . . . . . . . . . . . . . . . . . . | D17: R | E17: ='1500..'!I80 -> 57,740.00
A18: 1800 | B18: DAYWORKS. . . . . . . . . . . . . . . . . . . . . . . . . . . . . . . . . . . . . . . . . . . . . . . . . . . . . . . . . . . . . . . . . . . . . . . . . . . . . . . . . . . | D18: R | E18: ='1800'!I80 -> -
A19: 2100 | B19: EXCAVATION FOR OPEN DRAINS | E19: ='2100'!I72 -> 57,440.00
A20: 2300 | B20: CONCRETE KERBING, CONCRETE CHANNELING, CHUTES AND
B21: DOWNPIPES, CONCRETE LININS FOR OPEN DRAINS. . . . . . . . . . . . . . . . . . . . . . . . . . . . | D21: R | E21: ='2300'!I81 -> 210,600.00
A22: 3300 | B22: MASS EARTHWORKS . . . . . . . . . . . . . . . . . . . . . . . . . . . . . . . . . . . . . . . . . . . . . . . . . . . . . . . | D22: R | E22: ='3300'!I60 -> 180,800.00
A23: 3400 | B23: PAVEMENT LAYERS OF GRAVEL MATERIALS . . . . . . . . . . . . . . . . . . . . . . . . . . . . . . . . . . . . . . . . . . . . . . . . . . . . . . . | D23: R | E23: ='3400'!I68 -> 184,650.00
A24: 3500 | B24: STABILIZATION . . . . . . . . . . . . . . . . . . . . . . . . . . . . . . . . . . . . . . . . . . . . . . . . . . . . . . . | D24: R | E24: ='3500'!I82 -> 44,600.00
A25: 5600 | B25: ROAD SIGNS . . . . . . . . . . . . . . . . . . . . . . . . . . . . . . . . . . . . . . . . . . . . . . . . . . . . . . . | D25: R | E25: ='5600'!I82 -> 40,514.00
A26: 5700 | B26: ROAD MARKINGS . . . . . . . . . . . . . . . . . . . . . . . . . . . . . . . . . . . . . . . . . . . . . . . . . . . . . . . | D26: R | E26: ='5700'!I72 -> 50,943.00
A27: 5800 | B27: FINISHING THE ROAD AND ROAD RESERVE AND TREATING OLD ROADS . . . . . . | D27: R | E27: ='5800'!I82 -> 1,000.00
A28: 7300 | B28: CONCRETE BLOCK PAVING FOR ROADS . . . . . . . . . . . . . . . . . . . . . . . . . . . . . . . . . . . . . . . . . . . . . . . . . . . . . . . | D28: R | E28: ='7300'!I77 -> 273,900.00
A29: 8100 | B29: TESTING MATERIALS AND WORKMANSHIP | D29: R | E29: ='8100..'!I82 -> 20,000.00
A42: CALCULATION OF TENDER SUM
A45: Schedule A: Road Construction | D45: R | E45: =SUM(E14:E29) -> 1,536,756.61
A48: TOTAL OF SCHEDULE OF QUANTITIES (TENDER SUM). . . . . . . . . . . . . . . . . . . . . . . . . . . . . . . . . . . . . . . . . . . . . . . . . . . . . . . . . . . . . . | D48: R | E48: =E45 -> 1,536,756.61
A51: The Tenderer shall make an allowance of 10% of the tender
A52: sum for contingencies (Add 10% OF Tender Sum above) | D52: R | E52: =E48*0.1 -> 153,675.66
A55: SUBTOTAL (Tender sum plus contingencies plus contract price adjustment). . . . . . . . . . . . . . . . . . . . . . . . . . . . . . . . . . . . . . . . . . . . . . . . . . . . . . . . . . . . . . . . . . . . . . . . . . . . . . . . . . . . . . . . . . . . . . . . . . . | D55: R | E55: =SUM(E47:E53) -> 1,690,432.27
A58: VALUE-ADDED TAX (VAT)
A59: The tenderer shall add 15% of the subtotal for VAT . . . . . . . . . . . . . . . . . . . . . . . . . . . . . . . . . . . . . . . . . . . . . . . . . . . . . . . . . . . . . . . . . . . . . | D59: R | E59: =E55*0.15 -> 253,564.84
A62: TENDER PRICE CARRIED TO FORM OF TENDER | D62: R | E62: =SUM(E55:E59) -> 1,943,997.11
